bitfinex-derivatives/quotes_SOLF0:USTF0_20240908
["timestamp","ask_amount","ask_price","bid_price","bid_amount"]
[1725834215854,0.28101165,130.89,130.81,33.948]
[1725834216061,1.0,130.92,130.83,30.89]
[1725834216245,3.0563,130.89,130.85,30.89]
[1725834216444,1.0,130.92,130.85,30.89]
[1725834216645,1.0,130.92,130.77,3.74358759]
[1725834216847,3.0563,130.89,130.84,30.89]
[1725834217145,1.0,130.92,130.84,30.89]
[1725834217345,0.28097181,130.91,130.86,30.89]
[1725834217541,1.0,130.92,130.86,30.89]
[1725834218259,1.0,130.92,130.84,30.89]
[1725834218463,0.28096532,130.91,130.84,30.89]
[1725834218649,1.0,130.92,130.86,30.89]
[1725834219049,1.0,130.92,130.84,30.89]
[1725834219361,0.28096266,130.91,130.82,31.0831]
[1725834219661,3.0565,130.88,130.82,31.0831]
[1725834219960,1.0,130.92,130.82,31.0831]
[1725834220153,3.0564,130.88,130.82,31.0831]
[1725834220461,1.0,130.92,130.84,30.89]
[1725834220660,3.0563,130.89,130.84,33.9473]
[1725834221258,3.0563,130.89,130.84,30.89]
[1725834221469,3.0563,130.89,130.82,0.1931]
[1725834221470,0.2,131.0,130.88,30.89]
[1725834221646,2.8725,131.0,130.9,30.89]
[1725834221847,3.2552,130.93,130.9,30.89]
[1725834222556,0.2,130.93,130.86,30.89]
[1725834222746,0.2,130.93,130.84,30.89]
[1725834223259,0.28094242,130.92,130.82,31.0818]
[1725834223571,2.6725,130.92,130.82,31.0818]
[1725834223745,2.6725,130.92,130.84,30.89]
[1725834223945,0.28095605,130.91,130.84,30.89]
[1725834224141,2.6725,130.92,130.84,30.89]
[1725834224555,3.0563,130.89,130.84,30.89]
[1725834225148,3.0563,130.89,130.84,33.947]
[1725834225343,3.0567,130.87,130.84,30.89]
[1725834225558,2.6725,130.92,130.84,30.89]
[1725834225751,2.6725,130.92,130.84,33.9472]
[1725834225949,1.3425,130.92,130.84,30.89]
[1725834226153,0.2,130.93,130.87,25.7]
[1725834226463,3.2553,130.93,130.92,25.7]
[1725834226670,0.2,131.0,130.92,25.7]
[1725834226974,0.28086104,130.99,130.95,25.7]
[1725834227459,0.2,131.0,130.95,25.7]
[1725834227651,0.28081309,130.99,130.95,25.7]
[1725834227855,0.2,131.0,130.97,25.7]
[1725834228156,0.2,131.0,130.96,30.79]
[1725834228458,0.2,131.0,130.98,30.79]
[1725834228659,0.2,131.0,130.89,159.3694006]
[1725834228854,0.2,131.0,130.95,30.79]
[1725834229654,3.2535,131.0,130.95,30.79]
[1725834229858,0.2,131.0,130.91,30.79]
[1725834230258,2.8621,131.0,130.91,30.79]
[1725834230562,1.0,130.99,130.88,34.6768165]
[1725834230751,3.0544,130.97,130.91,30.79]
[1725834231054,1.0,130.99,130.91,30.79]
[1725834231758,0.2,131.0,130.93,30.79]
[1725834232358,3.0542,130.98,130.93,30.79]
[1725834232557,0.2,131.0,130.93,30.79]
[1725834233350,3.0542,130.97,130.91,33.8456]
[1725834233549,30.99,131.0,130.87,30.79]
[1725834233748,0.28080576,130.99,130.88,3.74034802]
[1725834233965,0.28080576,130.99,130.88,3.0563]
[1725834234271,0.28080576,130.99,130.87,30.79]
[1725834234452,0.28080576,130.99,130.87,33.8465]
[1725834234652,1.0,130.98,130.87,30.79]
[1725834235048,3.0552,130.93,130.87,33.8465]
[1725834235252,1.3788,130.97,130.85,30.79]
[1725834235563,31.07087436,130.96,130.83,33.8473]
[1725834235767,30.79,130.94,130.83,30.79]
[1725834235955,3.0564,130.88,130.83,30.79]
[1725834236764,1.0,130.93,130.81,3.8796785]
[1725834236964,1.0,130.93,130.86,30.79]
[1725834237261,1.0,130.93,130.8,30.79]
[1725834237262,0.28094434,130.92,130.84,30.79]
[1725834237463,1.0,130.93,130.81,3.74206058]
[1725834237667,0.28094894,130.92,130.81,3.74206058]
[1725834237970,0.28094894,130.92,130.82,30.79]
[1725834238165,1.28094894,130.91,130.82,30.79]
[1725834238366,1.0,130.91,130.82,30.79]
[1725834238567,1.0,130.91,130.82,33.8477]
[1725834239167,3.0564,130.88,130.82,33.8477]
[1725834239355,1.0,130.91,130.82,30.79]
[1725834239759,1.0,130.91,130.82,33.8477]
[1725834240161,3.0559,130.9,130.82,30.79]
[1725834240467,1.0,130.91,130.82,30.79]
[1725834240864,3.0562,130.89,130.82,30.79]
[1725834241263,31.79,130.91,130.81,3.85788899]
[1725834241861,30.79,130.87,130.76,30.79]
[1725834242062,30.79,130.85,130.74,30.79]
[1725834242258,30.79,130.85,130.74,33.8494]
[1725834242259,0.28109871,130.84,130.74,33.8494]
[1725834242563,5.02111127,130.86,130.76,30.79]
[1725834242758,0.28108752,130.85,130.76,30.79]
[1725834242958,3.0579,130.82,130.76,30.79]
[1725834243158,30.79,130.85,130.76,30.79]
[1725834243365,0.28111939,130.84,130.74,30.79]
[1725834243685,1.0,130.85,130.76,30.79]
[1725834243857,1.0,130.85,130.78,30.79]
[1725834244168,1.0,130.85,130.8,30.79]
[1725834244375,1.3642,130.9,130.82,30.79]
[1725834244581,1.3668,130.93,130.82,30.79]
[1725834244877,0.28096296,130.92,130.85,30.79]
[1725834245177,1.3668,130.93,130.85,30.79]
[1725834245374,0.28095109,130.92,130.85,30.79]
[1725834245563,3.056,130.9,130.85,30.79]
[1725834245874,1.3668,130.93,130.85,30.79]
[1725834246465,0.28094728,130.92,130.85,30.79]
[1725834246666,1.3668,130.93,130.85,30.79]
[1725834247072,0.2809402,130.92,130.83,30.79]
[1725834247769,1.2809402,130.92,130.83,30.79]
[1725834247977,1.0,130.92,130.83,30.79]
[1725834248577,3.0561,130.89,130.83,33.8473]
[1725834248778,1.0,130.92,130.83,30.79]
[1725834249084,30.79,130.84,130.73,33.8496]
[1725834249271,1.357,130.83,130.73,30.79]
[1725834249875,3.0582,130.8,130.74,3.0594]
[1725834250083,1.2675,130.85,130.76,30.79]
[1725834250372,1.2675,130.85,130.7,3.82645294]
[1725834250563,1.2675,130.85,130.76,30.79]
[1725834250980,3.0579,130.82,130.76,33.8491]
[1725834251278,30.79,130.84,130.74,30.79]
[1725834251464,3.0584,130.8,130.75,3.0593]
[1725834251661,1.2675,130.85,130.74,30.79]
[1725834251877,1.2675,130.85,130.76,30.79]
[1725834252573,1.2675,130.85,130.75,3.0593]
[1725834252574,30.79,130.84,130.75,3.0593]
[1725834252777,0.28111682,130.83,130.74,30.79]
[1725834253278,1.0,130.84,130.76,30.79]
[1725834253474,1.0,130.84,130.78,30.79]
[1725834253675,4.4138,130.86,130.78,30.79]
[1725834254278,3.0568,130.86,130.8,3.058]
[1725834254480,1.3556,130.9,130.8,30.79]
[1725834254688,1.3556,130.9,130.77,3.90699097]
[1725834254689,1.3556,130.9,130.82,30.79]
[1725834254979,1.3556,130.9,130.8,30.79]
[1725834255372,3.0571,130.85,130.8,33.8482]
[1725834255568,1.3556,130.9,130.8,30.79]
[1725834255768,0.2810048,130.89,130.8,30.79]
[1725834256481,3.0564,130.88,130.8,30.79]
[1725834256784,1.3556,130.9,130.82,30.79]
[1725834257277,1.3556,130.9,130.82,33.8477]
[1725834257668,1.3556,130.9,130.8,30.79]
[1725834257972,0.28100212,130.89,130.8,33.8481]
[1725834258280,3.0566,130.87,130.81,3.0579]
[1725834258481,1.3556,130.9,130.8,30.79]
[1725834258684,1.3556,130.9,130.82,30.79]
[1725834259180,30.79,130.95,130.84,30.79]
[1725834259379,0.28091487,130.94,130.84,30.79]
[1725834259580,0.28091487,130.94,130.86,3.0567]
[1725834260065,3.0556,130.91,130.86,3.0567]
[1725834260467,30.79,130.95,130.85,3.057]
[1725834260673,3.0558,130.91,130.84,30.79]
[1725834261169,30.79,130.95,130.84,30.79]
[1725834261370,30.79,130.93,130.82,30.79]
[1725834261585,0.28091421,130.92,130.82,30.79]
[1725834261984,30.79,130.93,130.82,30.79]
[1725834262381,30.79,130.95,130.84,30.79]
[1725834262595,0.28092212,130.94,130.84,30.79]
[1725834262885,0.28092212,130.94,130.8,30.79]
[1725834262886,3.0551,130.94,130.89,3.056]
[1725834263076,30.79,130.97,130.86,30.79]
[1725834263274,0.28087341,130.96,130.86,30.79]
[1725834263479,30.79,130.95,130.84,30.79]
[1725834263679,4.0108,130.98,130.79,3.84165456]
[1725834263680,0.28087341,130.94,130.88,30.79]
[1725834263887,0.28087341,130.94,130.9,3.0558]
[1725834264082,1.3285,130.98,130.91,30.79]
[1725834264284,0.2,131.0,130.93,30.79]
[1725834264490,0.28083792,130.97,130.93,30.79]
[1725834264681,0.2,131.0,130.93,30.79]
[1725834265090,0.28080143,130.99,130.91,30.79]
[1725834265291,3.86334558,130.99,130.89,30.79]
[1725834265494,3.86334558,130.99,130.9,3.0558]
[1725834265495,3.0542,130.97,130.9,3.0558]
[1725834265688,34.54180742,130.99,130.89,30.79]
[1725834265877,34.54180742,130.99,130.89,33.8459]
[1725834265878,3.0545,130.96,130.89,33.8459]
[1725834266078,34.54180742,130.99,130.89,30.79]
[1725834266386,0.2,131.0,130.91,3.0556]
[1725834266387,5.95313136,130.98,130.91,3.0556]
[1725834266697,2.6181,130.98,130.89,30.79]
[1725834266998,3.0547,130.95,130.89,30.79]
[1725834267386,2.6181,130.98,130.89,30.79]
[1725834267689,2.6181,130.98,130.91,33.8456]
[1725834267891,0.2,131.0,130.91,30.79]
[1725834268190,0.28078997,130.99,130.91,30.79]
[1725834268691,3.87501501,130.98,130.91,30.79]
[1725834268887,0.2,131.0,130.91,30.79]
[1725834269083,0.28081323,130.99,130.91,30.79]
[1725834269279,3.81732722,130.98,130.89,30.79]
[1725834269479,31.07081323,130.99,130.89,30.79]
[1725834269480,2.93061323,130.97,130.89,30.79]
[1725834269685,0.28084343,130.96,130.89,30.79]
[1725834269895,4.10733957,130.96,130.86,30.79]
[1725834270104,3.82649614,130.96,130.86,30.79]
[1725834270286,33.4398,130.97,130.86,33.8468]
[1725834270287,3.055,130.94,130.86,33.8468]
[1725834270593,4.75658312,130.95,130.86,30.79]
[1725834270892,4.75658312,130.95,130.84,30.79]
[1725834270893,1.68231165,130.94,130.84,30.79]
[1725834271192,31.07091165,130.93,130.83,3.0575]
[1725834271399,3.0562,130.89,130.83,3.0575]
[1725834271596,1.4014,130.94,130.84,30.79]
[1725834271987,3.0557,130.91,130.84,30.79]
[1725834272191,1.4014,130.94,130.86,30.79]
[1725834272192,1.0,130.93,130.86,30.79]
[1725834272598,1.0,130.93,130.87,3.0565]
[1725834272798,1.0,130.93,130.88,30.79]
[1725834272988,2.6498,130.97,130.9,30.79]
[1725834273895,2.6498,130.97,130.8,30.79]
[1725834273896,0.28084425,130.96,130.88,30.79]
[1725834274488,0.28084425,130.96,130.86,30.79]
[1725834274894,0.28084425,130.96,130.88,30.79]
[1725834275096,2.6498,130.97,130.88,30.79]
[1725834275298,0.28086861,130.96,130.88,30.79]
[1725834275692,0.28086861,130.96,130.8,30.79]
[1725834275693,1.0,130.95,130.86,30.79]
[1725834275902,3.0558,130.91,130.86,30.79]
[1725834276102,1.0,130.95,130.88,25.69]
[1725834276494,3.0552,130.93,130.88,25.69]
[1725834276797,1.0,130.95,130.9,25.69]
[1725834277000,3.055,130.94,130.9,25.69]
[1725834277199,3.055,130.94,130.89,3.056]
[1725834277397,1.0,130.95,130.88,25.69]
[1725834277697,1.0,130.95,130.9,25.69]
[1725834278002,1.0,130.95,130.88,25.69]
[1725834278202,3.055,130.94,130.88,28.7462]
[1725834278600,3.0552,130.93,130.88,25.69]
[1725834278796,1.0,130.95,130.88,25.69]
[1725834278998,25.97087844,130.94,130.84,25.69]
[1725834279189,25.69,130.92,130.83,25.69]
[1725834279387,27.37317844,130.91,130.81,25.69]
[1725834279589,0.28087844,130.9,130.81,25.69]
[1725834279793,3.0574,130.84,130.79,25.69]
[1725834280492,3.0574,130.84,130.79,28.7484]
[1725834281002,26.69,130.89,130.81,25.69]
[1725834281003,1.0,130.89,130.81,25.69]
[1725834281197,0.28102569,130.88,130.82,25.69]
[1725834282002,25.97102569,130.88,130.79,25.69]
[1725834282304,0.28102569,130.87,130.79,25.69]
[1725834282690,3.0571,130.85,130.79,25.69]
[1725834283013,3.0571,130.85,130.73,182.87075331]
[1725834283014,0.2,131.0,130.84,25.69]
[1725834283197,3.0559,130.9,130.86,25.69]
[1725834284212,3.0557,130.91,130.86,25.69]
[1725834285004,3.0559,130.9,130.86,25.69]
[1725834285211,29.48643785,130.94,130.85,25.69]
[1725834285409,25.69,130.92,130.82,25.69]
[1725834285616,3.0565,130.88,130.82,25.69]
[1725834285908,3.0565,130.88,130.83,3.0575]
[1725834286407,1.0,130.93,130.85,28.747]
[1725834286608,1.0,130.93,130.87,25.69]
[1725834287110,1.0,130.93,130.88,25.69]
[1725834287313,1.0,130.93,130.91,25.69]
[1725834287496,3.0551,130.94,130.91,25.69]
[1725834288508,3.0552,130.93,130.89,25.69]
[1725834288809,4.0254,130.97,130.89,25.69]
[1725834289017,0.28088742,130.96,130.87,25.69]
[1725834289398,26.69,130.95,130.87,25.69]
[1725834289717,0.28088742,130.94,130.87,25.69]
[1725834290210,1.0,130.95,130.88,30.84]
[1725834290513,0.28089838,130.94,130.88,30.84]
[1725834290711,3.0554,130.93,130.88,30.84]
[1725834291122,1.0,130.95,130.88,30.84]
[1725834291315,0.280888,130.94,130.88,30.84]
[1725834291501,0.280888,130.94,130.86,30.84]
[1725834291813,0.280888,130.94,130.88,30.84]
[1725834292015,1.0,130.95,130.88,30.84]
[1725834292316,1.0,130.95,130.9,30.84]
[1725834292633,1.0,130.95,130.92,30.84]
[1725834293301,3.76040657,130.99,130.92,30.84]
[1725834293510,0.28083246,130.98,130.92,30.84]
[1725834293708,0.28083246,130.97,130.92,30.84]
[1725834293912,8.54836265,131.01,130.92,30.84]
[1725834294111,8.54836265,131.01,130.94,30.84]
[1725834294311,8.54836265,131.01,130.88,30.84]
[1725834294312,0.28077469,130.99,130.92,30.84]
[1725834294515,3.0544,130.97,130.92,30.84]
[1725834294909,8.54836265,131.01,130.92,30.84]
[1725834295106,0.28077922,130.99,130.92,30.84]
[1725834295707,3.0545,130.96,130.92,30.84]
[1725834295909,8.54836265,131.01,130.92,30.84]
[1725834296113,0.28080256,130.99,130.92,30.84]
[1725834296411,4.05104507,130.99,130.88,30.84]
[1725834296719,3.0545,130.96,130.9,33.8959]
[1725834297024,8.54836265,131.01,130.92,30.84]
[1725834297204,0.28079308,130.99,130.92,30.84]
[1725834297518,3.0543,130.97,130.92,30.84]
[1725834297906,8.54836265,131.01,130.92,30.84]
[1725834298107,0.28078358,130.99,130.92,30.84]
[1725834298303,8.54836265,131.01,130.92,30.84]
[1725834299010,8.54836265,131.01,130.92,33.8954]
[1725834299212,0.28078104,130.99,130.92,33.8954]
[1725834299412,8.54836265,131.01,130.92,33.8954]
[1725834299716,3.0542,130.98,130.92,33.8954]
[1725834299915,3.0542,130.98,130.93,3.0551]
[1725834300426,3.80959546,130.99,130.9,33.8958]
[1725834300620,39.38836265,131.01,130.88,30.84]
[1725834300810,0.28077841,130.99,130.91,30.84]
[1725834301319,8.54836265,131.01,130.93,30.84]
[1725834301618,8.54836265,131.01,130.95,30.84]
[1725834302023,11.60186265,131.01,130.96,3.0545]
[1725834302217,8.54836265,131.01,130.95,30.84]
[1725834302419,8.54836265,131.01,130.93,30.84]
[1725834302619,8.54836265,131.01,130.91,30.84]
[1725834302816,8.54836265,131.01,130.88,30.84]
[1725834303017,4.07519149,130.99,130.88,30.84]
[1725834303218,0.28078657,130.98,130.88,33.8963]
[1725834303425,0.28078657,130.98,130.88,30.84]
[1725834303426,2.743,130.98,130.88,30.84]
[1725834303622,5.7971,130.98,130.88,34.73373489]
[1725834303827,0.2,131.0,130.93,30.84]
[1725834304011,0.2,131.0,130.95,30.84]
[1725834305027,3.2536,131.0,130.95,30.84]
[1725834305212,0.2,131.0,130.93,30.84]
[1725834305412,0.2,131.0,130.97,30.84]
[1725834305613,0.2,131.0,130.95,30.84]
[1725834305614,3.2537,131.0,130.95,30.84]
[1725834306319,0.2,131.0,130.97,30.84]
[1725834307020,0.2,131.0,130.99,30.84]
[1725834307215,0.2,131.06,130.99,30.84]
[1725834307412,0.2,131.06,131.0,30.84]
[1725834307722,0.2,131.06,130.98,30.84]
[1725834308025,0.2,131.06,130.95,30.84]
[1725834308026,3.0532,131.02,130.95,30.84]
[1725834308215,31.04,131.06,130.88,34.73373489]
[1725834308216,30.84,131.04,130.93,30.84]
[1725834308414,30.84,131.04,130.88,34.73373489]
[1725834308415,30.84,131.02,130.92,3.0553]
[1725834308626,0.28070578,131.01,130.94,30.84]
[1725834308817,2.6452,131.04,130.94,30.84]
[1725834309021,3.0535,131.01,130.94,30.84]
[1725834309223,1.0,131.03,130.94,30.84]
[1725834309526,3.0536,131.0,130.94,30.84]
[1725834309718,1.0,131.03,130.94,30.84]
[1725834310027,0.28073702,131.02,130.95,3.0547]
[1725834310215,0.28073702,131.02,130.95,25.67]
[1725834310621,0.28073702,131.02,130.88,3.89373489]
[1725834310622,3.054,130.98,130.93,25.67]
[1725834311217,1.0,131.03,130.95,25.67]
[1725834311422,0.28075011,131.02,130.95,25.67]
[1725834311826,4.15449522,131.02,130.93,25.67]
[1725834312019,25.95075011,131.01,130.91,25.67]
[1725834312216,0.28075011,131.0,130.91,25.67]
[1725834312426,0.28075011,131.0,130.8,25.67]
[1725834312427,3.84471684,130.99,130.8,25.67]
[1725834312630,25.67,130.97,130.87,25.67]
[1725834312822,26.67,130.99,130.87,28.7264]
[1725834313023,0.28083533,130.98,130.87,28.7264]
[1725834313423,0.28083533,130.98,130.87,25.67]
[1725834313717,25.67,130.96,130.85,25.67]
[1725834313935,2.94393533,130.95,130.85,25.67]
[1725834314227,3.0561,130.89,130.84,25.67]
[1725834314433,25.67,130.93,130.84,25.67]
[1725834314626,25.67,130.91,130.82,25.67]
[1725834314825,3.0568,130.87,130.82,25.67]
[1725834315023,30.84140664,130.93,130.83,25.67]
[1725834315337,0.28096235,130.92,130.85,25.67]
[1725834315537,3.0556,130.91,130.85,28.7268]
[1725834316334,3.7260126,130.93,130.85,25.67]
[1725834316635,0.2809316,130.92,130.85,25.67]
[1725834316834,3.7260126,130.93,130.85,25.67]
[1725834317030,1.0,130.94,130.85,28.727]
[1725834317227,0.28091886,130.93,130.85,28.727]
[1725834317824,0.28091886,130.93,130.85,25.67]
[1725834318226,29.74591729,130.93,130.85,25.67]
[1725834318424,0.28091886,130.92,130.85,25.67]
[1725834318928,3.0561,130.9,130.85,25.67]
[1725834319126,29.46499843,130.93,130.85,25.67]
[1725834319326,0.28096404,130.92,130.85,25.67]
[1725834319731,1.0,130.94,130.85,25.67]
[1725834319935,0.28094733,130.93,130.85,25.67]
[1725834320137,0.28094733,130.93,130.85,28.727]
[1725834320138,3.0558,130.91,130.85,28.727]
[1725834320325,1.0,130.94,130.87,25.67]
[1725834320633,3.0557,130.91,130.87,25.67]
[1725834320827,3.76012842,130.91,130.84,25.67]
[1725834321026,0.28097115,130.9,130.84,25.67]
[1725834321224,25.67,130.93,130.84,25.67]
[1725834321421,0.28095943,130.92,130.86,25.67]
[1725834321626,1.0,130.94,130.86,25.67]
[1725834321835,3.056,130.9,130.86,25.67]
[1725834322040,1.0,130.94,130.86,25.67]
[1725834322336,0.2809359,130.93,130.87,25.67]
[1725834323839,1.0,130.94,130.89,25.67]
[1725834324135,3.0543,130.97,130.93,25.67]
[1725834324348,3.82022471,130.98,130.91,25.67]
[1725834324543,2.6463,130.99,130.89,25.67]
[1725834324544,0.28085018,130.97,130.89,25.67]
[1725834324844,28.3163,130.99,130.89,25.67]
[1725834324845,0.28085018,130.96,130.89,25.67]
[1725834325137,1.0,130.97,130.89,25.67]
[1725834325344,3.0556,130.92,130.86,28.7267]
[1725834325642,1.0,130.95,130.86,25.67]
[1725834325833,25.67,130.93,130.85,25.67]
[1725834326025,1.4045,130.92,130.83,25.67]
[1725834326230,2.6878,130.92,130.81,3.0579]
[1725834326428,25.67,130.89,130.79,25.67]
[1725834326633,29.41073224,130.89,130.79,25.67]
[1725834326938,0.28102078,130.88,130.79,25.67]
[1725834327134,0.28103804,130.87,130.79,25.67]
[1725834327339,3.0577,130.83,130.79,25.67]
[1725834328138,3.0573,130.84,130.79,25.67]
[1725834328441,1.0,130.88,130.81,25.67]
[1725834328629,3.0568,130.86,130.81,25.67]
[1725834329034,1.0,130.88,130.81,25.67]
[1725834329430,3.057,130.86,130.81,25.67]
[1725834329637,1.0,130.88,130.81,25.67]
[1725834330538,3.0566,130.87,130.81,25.67]
[1725834330746,1.0,130.88,130.81,25.67]
[1725834330938,1.0,130.88,130.79,25.67]
[1725834331242,4.82006538,130.88,130.79,25.67]
[1725834331540,3.0573,130.84,130.79,25.67]
[1725834331925,3.0573,130.84,130.78,3.2586]
[1725834331926,4.82006538,130.88,130.78,0.2]
[1725834332130,25.95102501,130.87,130.78,0.2]
[1725834332339,25.67,130.87,130.78,0.2]
[1725834332538,0.28111201,130.86,130.78,0.2]
[1725834332740,25.67,130.85,130.78,0.2]
[1725834333042,3.0578,130.82,130.78,0.2]
[1725834333436,1.0,130.86,130.79,25.67]
[1725834333743,3.0575,130.83,130.79,25.67]
[1725834333930,1.0,130.86,130.79,25.67]
[1725834334131,3.0574,130.84,130.79,25.67]
[1725834334331,1.0,130.86,130.79,25.67]
[1725834334539,0.28110042,130.85,130.78,0.2]
[1725834334738,0.28110042,130.85,130.79,25.67]
[1725834335461,1.0,130.86,130.81,25.67]
[1725834335743,3.0554,130.92,130.85,25.67]
[1725834335949,1.3821,130.93,130.87,25.67]
[1725834336849,3.87776163,130.95,130.89,25.67]
[1725834337047,0.28089852,130.94,130.87,25.67]
[1725834337245,0.28089852,130.93,130.87,25.67]
[1725834337552,1.0,130.93,130.85,25.67]
[1725834337744,0.28093134,130.92,130.85,25.67]
[1725834337940,0.28093134,130.92,130.83,25.67]
[1725834337941,25.95093134,130.92,130.83,25.67]
[1725834338250,25.67,130.92,130.83,28.7275]
[1725834338548,1.28098186,130.91,130.83,28.7275]
[1725834338760,1.0,130.91,130.87,25.67]
[1725834339054,3.88808195,130.95,130.89,25.67]
[1725834339344,3.0555,130.92,130.87,25.67]
[1725834339949,3.9703,130.96,130.8,29.55464184]
[1725834339950,1.3679,130.96,130.89,25.67]
[1725834340658,3.0552,130.93,130.89,25.67]
[1725834342251,1.3679,130.96,130.89,25.67]
[1725834342446,0.28087581,130.95,130.89,25.67]
[1725834342751,3.0556,130.92,130.87,25.67]
[1725834342954,1.3679,130.96,130.88,25.67]
[1725834343154,0.28087093,130.95,130.88,25.67]
[1725834343450,0.28087093,130.95,130.87,25.67]
[1725834344154,3.0557,130.91,130.87,25.67]
[1725834344960,3.0554,130.92,130.87,25.67]
[1725834345656,3.0557,130.91,130.87,25.67]
[1725834346664,1.3679,130.96,130.88,25.67]
[1725834346957,1.3679,130.96,130.89,25.67]
[1725834347151,0.28088878,130.95,130.87,25.67]
[1725834347459,1.28088878,130.95,130.87,25.67]
[1725834347656,0.28088878,130.94,130.85,25.67]
[1725834348158,0.28088878,130.94,130.87,25.67]
[1725834348366,1.0,130.95,130.93,25.67]
[1725834348561,2.6358,130.99,130.93,25.67]
[1725834348752,5.6896,130.99,130.93,25.67]
[1725834349061,0.28087018,130.98,130.93,25.67]
[1725834349259,0.28087018,130.99,130.93,25.67]
[1725834349566,0.28087018,130.98,130.93,28.725]
[1725834349762,0.28087018,130.97,130.93,28.725]
[1725834349949,0.28087018,130.96,130.93,28.725]
[1725834350262,1.3252,131.05,130.95,25.67]
[1725834350557,1.3252,131.05,130.93,25.67]
[1725834350558,0.28082451,131.04,130.99,25.67]
[1725834350950,0.28082451,131.04,130.93,25.67]
[1725834350951,0.2,131.06,131.01,28.7233]
[1725834351145,0.28067425,131.05,131.03,25.67]
[1725834351362,0.2,131.06,131.03,25.67]
[1725834353064,0.2,131.06,130.99,3.85820532]
[1725834353259,0.2,131.06,131.01,25.67]
[1725834353458,0.2,131.06,131.03,25.67]
[1725834355465,0.2,131.06,131.01,28.7232]
[1725834356051,0.2,131.06,131.02,3.0531]
[1725834356363,0.2,131.06,131.01,25.67]
[1725834356864,3.0524,131.05,131.01,25.67]
[1725834357169,29.41158476,131.14,131.04,25.67]
[1725834357170,3.74158476,131.14,131.04,25.67]
[1725834357464,3.0516,131.09,131.07,25.67]
[1725834357663,0.28059999,131.08,131.07,25.67]
[1725834358265,0.28059999,131.08,130.97,3.8086868]
[1725834358465,0.28059999,131.07,131.02,25.67]
[1725834358665,25.67,131.11,131.02,25.67]
[1725834358862,0.28062777,131.1,131.02,25.67]
[1725834359258,3.0515,131.09,131.02,25.67]
[1725834359460,0.28062777,131.08,131.02,25.67]
[1725834359777,3.33232777,131.08,131.02,28.723]
[1725834359962,3.0517,131.08,131.04,25.67]
[1725834360167,25.87,131.13,131.04,25.67]
[1725834360465,0.28061937,131.12,131.04,25.67]
[1725834360869,3.0516,131.09,131.04,25.67]
[1725834361072,0.28061937,131.08,131.04,25.67]
[1725834361275,3.052,131.07,131.04,25.67]
[1725834361581,25.67,131.11,131.02,25.67]
[1725834361872,0.28061442,131.1,131.04,25.67]